bitfinex-derivatives/quotes_SOLF0:USTF0_20260312
["timestamp","ask_amount","ask_price","bid_price","bid_amount"]
[1773343466625,10.45,86.119,86.074,3.78062238]
[1773343467128,3.73156852,86.129,86.074,3.78062238]
[1773343467921,10.449,86.126,86.075,10.455]
[1773343468627,14.18056852,86.126,86.075,10.455]
[1773343469222,14.18056852,86.126,86.078,14.23562238]
[1773343470322,14.18056852,86.126,86.079,3.78062238]
[1773343470824,10.45,86.12,86.079,3.78062238]
[1773343471222,3.73156852,86.126,86.079,3.78062238]
[1773343471223,10.45,86.113,86.079,3.78062238]
[1773343471425,10.45,86.113,86.064,3.78062238]
[1773343471626,3.73156852,86.123,86.064,3.78062238]
[1773343471827,3.73156852,86.105,86.049,3.78062238]
[1773343472323,3.73156852,86.105,86.056,3.78062238]
[1773343472827,9.72017583,86.116,86.076,10.455]
[1773343473019,22.7054836,86.12,86.076,10.455]
[1773343473222,9.72017583,86.119,86.076,10.455]
[1773343474626,10.45,86.118,86.072,3.78062238]
[1773343474827,3.73156852,86.116,86.056,3.78062238]
[1773343475020,3.73156852,86.114,86.056,3.78062238]
[1773343475221,3.73156852,86.112,86.056,3.78062238]
[1773343475933,3.73156852,86.112,86.065,10.456]
[1773343476235,3.73156852,86.112,86.066,3.78062238]
[1773343476934,3.73156852,86.112,86.068,10.456]
[1773343477233,3.73156852,86.112,86.066,3.78062238]
[1773343477234,10.451,86.111,86.066,3.78062238]
[1773343477435,20.18707231,86.111,86.066,3.78062238]
[1773343478134,9.73607231,86.11,86.066,3.78062238]
[1773343478333,9.73607231,86.109,86.066,3.78062238]
[1773343478535,9.73607231,86.11,86.066,3.78062238]
[1773343478736,9.73607231,86.109,86.066,3.78062238]
[1773343478936,9.73607231,86.11,86.066,3.78062238]
[1773343479130,9.73607231,86.109,86.066,3.78062238]
[1773343479335,9.73607231,86.108,86.066,3.78062238]
[1773343479535,9.73607231,86.107,86.066,3.78062238]
[1773343479736,9.73607231,86.11,86.066,3.78062238]
[1773343479936,3.73156852,86.112,86.066,3.78062238]
[1773343479937,9.73607231,86.109,86.066,3.78062238]
[1773343480231,3.73156852,86.128,86.066,3.78062238]
[1773343480436,3.73156852,86.126,86.066,3.78062238]
[1773343480636,3.73156852,86.124,86.066,3.78062238]
[1773343480833,14.18156852,86.12,86.074,10.455]
[1773343481137,9.73607231,86.119,86.074,10.455]
[1773343481336,14.18156852,86.12,86.074,10.455]
[1773343481337,9.73607231,86.118,86.074,10.455]
[1773343481538,9.73607231,86.117,86.074,10.455]
[1773343481734,9.73607231,86.116,86.074,10.455]
[1773343481935,3.73156852,86.112,86.067,10.456]
[1773343482839,3.85551861,86.11,86.067,10.456]
[1773343483135,3.85551861,86.108,86.043,4.06704049]
[1773343483338,3.85551861,86.106,86.043,4.06704049]
[1773343483537,3.85551861,86.104,86.043,4.06704049]
[1773343483737,9.73607231,86.103,86.043,4.06704049]
[1773343483936,10.452,86.101,86.043,4.06704049]
[1773343484136,3.85551861,86.099,86.043,4.06704049]
[1773343484337,3.85551861,86.097,86.043,4.06704049]
[1773343484830,3.85551861,86.097,86.056,10.457]
[1773343485238,3.85551861,86.089,86.025,4.06704049]
[1773343485433,3.85551861,86.088,86.025,4.06704049]
[1773343485839,9.73607231,86.087,86.025,4.06704049]
[1773343486140,9.73607231,86.087,86.024,36.58]
[1773343486141,3.85551861,86.109,86.041,4.06704049]
[1773343486435,3.85551861,86.102,86.055,10.457]
[1773343486633,9.73607231,86.101,86.055,10.457]
[1773343486834,9.73607231,86.1,86.055,10.457]
[1773343487030,10.452,86.098,86.055,10.457]
[1773343487339,9.73607231,86.097,86.048,14.52504049]
[1773343487537,9.73607231,86.096,86.048,14.52504049]
[1773343487732,10.453,86.092,86.048,14.52504049]
[1773343487932,9.73607231,86.091,86.048,14.52504049]
[1773343488137,9.73607231,86.09,86.053,10.458]
[1773343488337,9.73607231,86.097,86.053,10.458]
[1773343488537,9.73607231,86.096,86.053,10.458]
[1773343488738,9.73607231,86.095,86.053,10.458]
[1773343488944,9.73607231,86.094,86.053,10.458]
[1773343489137,9.73607231,86.093,86.053,10.458]
[1773343489338,9.73607231,86.092,86.053,10.458]
[1773343489534,3.45483948,86.09,86.053,10.458]
[1773343489738,9.73607231,86.089,86.053,10.458]
[1773343490237,3.45483948,86.08,86.049,4.06704049]
[1773343491746,9.74317138,86.096,86.053,3.7148111]
[1773343492046,9.74317138,86.095,86.053,3.7148111]
[1773343492345,9.74317138,86.094,86.053,3.7148111]
[1773343492545,9.74317138,86.093,86.053,3.7148111]
[1773343492746,9.74317138,86.099,86.053,3.7148111]
[1773343493046,9.74317138,86.098,86.059,10.457]
[1773343493240,9.74317138,86.097,86.059,10.457]
[1773343493540,3.45483948,86.09,86.059,10.457]
[1773343494343,3.45483948,86.09,86.053,3.7148111]
[1773343494639,9.73465125,86.089,86.053,3.7148111]
[1773343495145,9.73465125,86.088,86.053,3.7148111]
[1773343495345,9.73465125,86.089,86.053,3.7148111]
[1773343495544,9.73465125,86.088,86.053,3.7148111]
[1773343495742,9.73465125,86.089,86.053,3.7148111]
[1773343495946,9.73465125,86.088,86.053,3.7148111]
[1773343496142,9.69904595,86.087,86.052,10.458]
[1773343496346,9.69904595,86.089,86.052,10.458]
[1773343496644,9.69904595,86.088,86.052,10.458]
[1773343496845,9.69904595,86.087,86.052,10.458]
[1773343497038,3.45483948,86.08,86.043,10.459]
[1773343497237,3.45483948,86.07,86.021,3.7148111]
[1773343497741,3.45483948,86.06,86.021,3.7148111]
[1773343498142,9.69894994,86.068,86.021,3.7148111]
[1773343498347,3.83735449,86.067,86.028,10.461]
[1773343499248,3.45483948,86.06,86.028,10.461]
[1773343500747,3.45483948,86.06,86.029,3.7148111]
[1773343502744,9.69894994,86.081,86.043,3.7148111]
[1773343502947,3.45483948,86.08,86.043,3.7148111]
[1773343503149,3.83735449,86.085,86.043,3.7148111]
[1773343504551,3.45483948,86.07,86.021,3.7148111]
[1773343504758,3.45483948,86.03,85.989,3.7148111]
[1773343505856,3.45483948,86.03,85.997,10.464]
[1773343506553,3.45483948,86.03,85.989,3.7148111]
[1773343506554,3.45483948,86.05,86.0,3.45483948]
[1773343506758,3.45483948,86.05,86.001,3.7148111]
[1773343507552,3.83735449,86.054,86.001,3.7148111]
[1773343507748,3.83735449,86.054,86.011,10.463]
[1773343507954,3.83735449,86.054,86.001,3.7148111]
[1773343508861,3.83735449,86.054,86.011,10.463]
[1773343510351,3.83735449,86.052,86.003,3.7148111]
[1773343511462,3.83735449,86.049,85.994,10.465]
[1773343511659,3.83735449,86.049,85.995,3.7148111]
[1773343511855,10.71645302,86.083,85.995,3.7148111]
[1773343511856,3.83735449,86.063,85.995,3.7148111]
[1773343512654,3.83735449,86.063,86.022,10.461]
[1773343513063,3.83735449,86.063,86.023,3.7148111]
[1773343513865,3.83735449,86.063,86.024,10.461]
[1773343514359,3.83735449,86.063,86.009,10.463]
[1773343514754,3.83735449,86.063,86.009,14.1778111]
[1773343514954,3.83735449,86.063,86.009,10.463]
[1773343515158,3.83735449,86.054,86.001,10.464]
[1773343515357,3.83735449,86.054,86.001,14.1788111]
[1773343515555,3.83735449,86.054,86.001,3.7148111]
[1773343515754,3.83735449,86.054,85.998,36.6]
[1773343515964,3.83735449,86.054,85.987,3.7148111]
[1773343516458,3.83735449,86.054,86.005,3.7148111]
[1773343517965,3.83735449,86.054,86.008,3.7148111]
[1773343518969,3.83735449,86.054,86.01,10.463]
[1773343520056,3.83735449,86.054,86.01,14.1778111]
[1773343520366,3.83735449,86.054,86.013,10.462]
[1773343520563,3.83735449,86.054,86.014,4.04290001]
[1773343520965,3.83735449,86.054,85.981,4.04290001]
[1773343521467,3.9556692,86.052,86.003,10.464]
[1773343522065,3.9556692,86.043,85.993,10.465]
[1773343522756,3.9556692,86.043,85.985,4.04290001]
[1773343522757,3.9556692,86.043,86.0,4.04290001]
[1773343522958,3.9556692,86.059,86.0,4.04290001]
[1773343523358,3.9556692,86.059,86.009,4.04290001]
[1773343523562,3.9556692,86.078,86.009,4.04290001]
[1773343523764,3.9556692,86.077,86.009,4.04290001]
[1773343524462,3.9556692,86.065,86.009,4.04290001]
[1773343524870,9.69894994,86.078,85.986,20.932]
[1773343524871,3.9556692,86.078,86.031,10.46]
[1773343526466,3.9556692,86.078,86.037,4.04290001]
[1773343526669,3.9556692,86.092,86.037,4.04290001]
[1773343527766,3.9556692,86.092,86.051,4.04290001]
[1773343527960,3.9556692,86.108,86.051,4.04290001]
[1773343528369,3.9556692,86.108,86.064,4.04290001]
[1773343529867,3.9556692,86.108,86.065,14.49890001]
[1773343530067,3.9556692,86.108,86.066,4.04290001]
[1773343530268,3.9556692,86.12,86.066,4.04290001]
[1773343530864,3.9556692,86.12,86.069,14.49890001]
[1773343531966,3.9556692,86.12,86.078,4.04290001]
[1773343532360,9.61235048,86.13,86.089,4.04290001]
[1773343532559,3.9556692,86.134,86.089,4.04290001]
[1773343532971,3.9556692,86.134,86.097,10.452]
[1773343533266,3.9556692,86.148,86.098,4.04290001]
[1773343533471,3.9556692,86.162,86.098,4.04290001]
[1773343533767,3.9556692,86.162,86.113,10.45]
[1773343533960,3.9556692,86.162,86.114,4.04290001]
[1773343534271,3.9556692,86.176,86.114,4.04290001]
[1773343535267,3.9556692,86.174,86.119,4.04290001]
[1773343535663,18.51245706,86.19,86.119,4.04290001]
[1773343535974,3.9556692,86.209,86.119,4.04290001]
[1773343536770,3.9556692,86.209,86.149,10.446]
[1773343536974,3.9556692,86.209,86.15,4.04290001]
[1773343537967,9.26437864,86.19,86.139,10.447]
[1773343538272,3.9556692,86.19,86.139,10.447]
[1773343538574,9.26437864,86.21,86.143,4.04290001]
[1773343538770,3.9556692,86.209,86.143,4.04290001]
[1773343539871,3.9556692,86.209,86.156,10.445]
[1773343540668,3.9556692,86.209,86.148,4.04290001]
[1773343541877,3.9556692,86.209,86.15,14.48890001]
[1773343542073,3.9556692,86.209,86.151,4.04290001]
[1773343542476,3.68711398,86.189,86.136,3.71368486]
[1773343544482,3.68711398,86.187,86.136,3.71368486]
[1773343544684,3.68711398,86.187,86.121,3.71368486]
[1773343545080,3.68711398,86.184,86.123,3.71368486]
[1773343545981,3.68711398,86.184,86.127,14.16268486]
[1773343546285,36.56,86.197,86.011,488.281]
[1773343546286,3.68711398,86.209,86.128,3.71368486]
[1773343546884,3.68711398,86.204,86.145,3.71368486]
[1773343547985,3.68711398,86.204,86.121,36.56]
[1773343547986,3.68711398,86.202,86.135,10.448]
[1773343548180,3.68711398,86.202,86.13,3.71368486]
[1773343550084,3.68711398,86.2,86.143,10.447]
[1773343550986,3.68711398,86.2,86.121,36.56]
[1773343550987,3.68711398,86.2,86.135,3.7096473]
[1773343551788,3.69665266,86.198,86.137,3.7096473]
[1773343552585,3.69665266,86.198,86.139,3.7096473]
[1773343553990,3.69665266,86.198,86.154,10.445]
[1773343555788,3.69665266,86.198,86.154,14.1546473]
[1773343556794,3.69665266,86.214,86.162,3.7096473]
[1773343557298,3.69665266,86.214,86.172,10.443]
[1773343557482,3.69665266,86.214,86.162,3.7096473]
[1773343557891,3.69665266,86.214,86.13,9.26437864]
[1773343557892,3.69665266,86.247,86.174,3.7096473]
[1773343558897,3.69665266,86.236,86.187,10.441]
[1773343559298,3.69665266,86.229,86.174,3.7096473]
[1773343559495,3.69665266,86.209,86.154,3.7096473]
[1773343560298,3.69665266,86.209,86.167,10.444]
[1773343561299,14.13565266,86.209,86.159,14.1546473]
[1773343561601,14.13565266,86.209,86.12,20.899]
[1773343561602,3.69665266,86.189,86.114,3.7096473]
[1773343562503,3.69665266,86.189,86.14,3.7096473]
[1773343564003,10.441,86.188,86.142,10.447]
[1773343564405,3.69665266,86.189,86.146,10.446]
[1773343564596,3.69665266,86.209,86.143,3.7096473]
[1773343565102,14.13565266,86.207,86.16,10.445]
[1773343565301,3.69665266,86.206,86.157,3.7096473]
[1773343566307,10.439,86.204,86.158,10.445]
[1773343567410,3.69665266,86.206,86.162,10.444]
[1773343568914,3.69665266,86.206,86.167,10.444]
[1773343569414,10.439,86.205,86.163,3.7096473]
[1773343569615,3.44632536,86.2,86.163,3.7096473]
[1773343571914,3.44632536,86.19,86.156,10.445]
[1773343574013,3.44632536,86.19,86.119,20.9]
[1773343574014,3.44632536,86.17,86.135,3.7096473]
[1773343574613,9.54837424,86.169,86.135,3.7096473]
[1773343574815,9.54837424,86.168,86.135,3.7096473]
[1773343575014,9.54837424,86.169,86.135,3.7096473]
[1773343575206,3.44632536,86.17,86.135,3.7096473]
[1773343575609,3.44831972,86.17,86.142,10.447]
[1773343575807,3.44831972,86.18,86.135,3.7096473]
[1773343576117,3.44831972,86.19,86.141,3.7096473]
[1773343576316,0.00074574,86.203,86.162,3.7096473]
[1773343576619,3.44831972,86.22,86.162,3.7096473]
[1773343577007,3.44831972,86.22,86.18,10.442]
[1773343577618,12.55237356,86.224,86.18,10.442]
[1773343577918,8.8557209,86.223,86.18,10.442]
[1773343578119,8.8557209,86.222,86.18,10.442]
[1773343578309,8.8557209,86.221,86.18,10.442]
[1773343578515,8.8557209,86.22,86.18,10.442]
[1773343578716,8.8557209,86.219,86.18,10.442]
[1773343578916,8.8557209,86.218,86.18,10.442]
[1773343579217,8.8557209,86.217,86.18,10.442]
[1773343579419,8.8557209,86.216,86.173,10.443]
[1773343579621,8.8557209,86.223,86.173,10.443]
[1773343579816,8.8557209,86.222,86.179,10.442]
[1773343580021,8.8557209,86.221,86.179,10.442]
[1773343580223,3.69665266,86.216,86.145,3.7096473]
[1773343580414,18.08279966,86.22,86.145,3.7096473]
[1773343580415,3.90202268,86.214,86.145,3.7096473]
[1773343580723,3.90202268,86.199,86.145,3.7096473]
[1773343580914,3.90202268,86.197,86.145,3.7096473]
[1773343581113,3.90202268,86.195,86.145,3.7096473]
[1773343581920,14.34202268,86.195,86.147,10.446]
[1773343582124,3.90202268,86.195,86.147,3.89250241]
[1773343582919,3.90202268,86.195,86.121,3.89250241]
[1773343583216,9.22707876,86.18,86.121,3.89250241]
[1773343583420,3.90202268,86.179,86.13,10.448]
[1773343584019,3.90202268,86.179,86.121,3.89250241]
[1773343584519,19.2967209,86.193,86.121,3.89250241]
[1773343584720,3.90202268,86.192,86.121,3.89250241]
[1773343584919,3.90202268,86.19,86.121,3.89250241]
[1773343585120,3.90202268,86.188,86.121,3.89250241]
[1773343585318,3.90202268,86.185,86.135,10.448]
[1773343586618,36.54,86.195,86.121,3.89250241]
[1773343586619,3.90202268,86.179,86.121,3.89250241]
[1773343589027,3.90202268,86.179,86.136,10.448]
[1773343589227,10.442,86.183,86.1,9.22707876]
[1773343589228,9.20203519,86.192,86.135,3.89250241]
[1773343589532,3.90202268,86.207,86.157,3.89250241]
[1773343589827,10.439,86.206,86.157,3.89250241]
[1773343590028,3.90202268,86.207,86.157,3.89250241]
[1773343590726,3.90202268,86.207,86.164,10.444]
[1773343592428,3.90202268,86.222,86.171,14.33550241]
[1773343592626,10.438,86.219,86.171,14.33550241]
[1773343593030,3.90202268,86.222,86.173,10.443]
[1773343593230,3.90202268,86.222,86.174,3.89250241]
[1773343594223,3.90202268,86.222,86.182,10.442]
[1773343594730,10.438,86.219,86.174,3.89250241]
[1773343595027,3.90202268,86.218,86.174,3.89250241]
[1773343595531,3.90202268,86.218,86.177,10.442]
[1773343597027,3.90202268,86.217,86.158,3.89250241]
[1773343598130,3.90202268,86.206,86.158,3.89250241]
[1773343598828,10.44,86.202,86.158,3.89250241]
[1773343599030,14.34202268,86.202,86.158,3.89250241]
[1773343599635,3.90202268,86.201,86.158,3.89250241]
[1773343600732,3.90202268,86.199,86.147,10.446]
[1773343601436,10.44,86.196,86.151,10.446]
[1773343601634,3.90202268,86.199,86.151,10.446]
[1773343601934,3.90202268,86.199,86.151,14.33850241]
[1773343602331,3.90202268,86.199,86.158,4.01954501]
[1773343603929,3.90202268,86.199,86.158,14.46454501]
[1773343604536,3.90202268,86.199,86.127,36.54]
[1773343604537,18.11138064,86.212,86.167,4.01954501]
[1773343604732,10.438,86.214,86.167,4.01954501]
[1773343605929,10.438,86.214,86.169,10.443]
[1773343606337,4.02344517,86.216,86.17,4.01954501]
[1773343606531,18.11138064,86.218,86.139,20.895]
[1773343606532,9.22707876,86.22,86.176,4.01954501]
[1773343609936,4.02344517,86.219,86.176,4.01954501]
[1773343610533,4.02344517,86.219,86.179,10.442]
[1773343613738,3.93424875,86.216,86.171,10.443]
[1773343614838,9.22707876,86.22,86.147,36.54]
[1773343614839,3.93424875,86.208,86.163,10.444]
[1773343615443,3.93424875,86.202,86.156,10.445]
[1773343615643,3.93424875,86.199,86.148,3.81013315]
[1773343616943,3.93424875,86.199,86.163,10.444]
[1773343617245,3.93424875,86.199,86.148,3.81013315]
[1773343617543,3.93424875,86.197,86.155,10.445]
[1773343617742,3.93424875,86.209,86.156,3.81013315]
[1773343618142,18.11138064,86.211,86.156,3.81013315]
[1773343618542,9.19795315,86.211,86.156,3.81013315]
[1773343618741,36.54,86.212,86.156,3.81013315]
[1773343619643,36.54,86.212,86.178,10.442]
[1773343619835,3.93424875,86.222,86.171,3.81013315]
[1773343620938,3.93424875,86.222,86.184,10.442]
[1773343621440,10.436,86.229,86.184,14.25213315]
[1773343621640,3.44460318,86.22,86.184,14.25213315]
[1773343621841,3.44460318,86.21,86.184,10.442]
[1773343622844,3.93424875,86.221,86.184,10.442]
[1773343623045,3.44460318,86.21,86.184,10.442]
[1773343624148,3.44460318,86.22,86.184,14.25213315]
[1773343625552,3.44460318,86.22,86.189,10.441]
[1773343625846,3.44460318,86.23,86.184,3.81013315]
[1773343626648,3.93424875,86.235,86.184,3.81013315]
[1773343626848,3.93424875,86.235,86.195,10.44]
[1773343627349,3.44460318,86.23,86.195,10.44]
[1773343627954,3.44460318,86.22,86.195,10.44]
[1773343629148,3.93424875,86.243,86.201,10.44]
[1773343629452,3.44460318,86.23,86.184,3.81013315]
[1773343630252,14.36924875,86.242,86.199,10.44]
[1773343630448,3.44460318,86.24,86.2,3.81013315]
[1773343630654,3.44460318,86.23,86.193,10.441]
[1773343631354,3.44460318,86.23,86.199,10.44]
[1773343632248,3.44460318,86.22,86.183,3.81013315]
[1773343632848,3.93424875,86.229,86.196,10.44]
[1773343633450,3.44460318,86.23,86.196,10.44]
[1773343633757,3.44460318,86.23,86.202,10.439]
[1773343637657,3.44356347,86.23,86.202,10.439]
[1773343637955,3.44356347,86.23,86.195,10.44]
[1773343637956,3.93424875,86.229,86.195,10.44]
[1773343638157,3.93424875,86.229,86.183,3.81013315]
[1773343638959,3.93424875,86.229,86.189,10.441]
[1773343640455,3.93424875,86.229,86.183,3.81013315]
[1773343640456,3.44356347,86.23,86.192,3.74677402]
[1773343641962,3.44356347,86.23,86.198,10.44]
[1773343642263,3.44356347,86.24,86.199,3.74677402]
[1773343642562,3.44356347,86.24,86.18,3.44356347]
[1773343642563,3.44356347,86.23,86.168,3.74677402]
[1773343642857,3.44356347,86.22,86.171,3.74677402]
[1773343643860,3.44356347,86.22,86.186,10.441]
[1773343644060,3.44356347,86.22,86.186,14.18777402]
[1773343646361,3.44356347,86.23,86.192,3.74677402]
[1773343646660,3.44356347,86.24,86.192,3.74677402]
[1773343647866,3.44356347,86.24,86.199,10.44]
[1773343648868,3.92527027,86.242,86.199,10.44]
[1773343649069,3.92527027,86.242,86.204,10.439]
[1773343649369,3.44356347,86.24,86.204,10.439]
[1773343650663,8.91183712,86.25,86.211,10.438]
[1773343650868,8.91183712,86.25,86.199,3.74677402]
[1773343650869,3.44356347,86.25,86.199,3.74677402]
[1773343651461,3.44356347,86.25,86.158,21.59226515]
[1773343651462,17.90386871,86.26,86.218,3.74677402]
[1773343651667,3.92527027,86.268,86.218,3.74677402]
[1773343651862,7.36883374,86.24,86.195,3.74677402]
[1773343652065,3.44356347,86.21,86.171,3.74677402]
[1773343652465,3.92527027,86.216,86.165,10.444]
[1773343652673,3.44356347,86.2,86.166,3.74677402]
[1773343653268,3.44356347,86.2,86.167,14.19077402]
[1773343654264,3.44356347,86.2,86.168,3.74677402]
[1773343655366,3.44356347,86.21,86.169,3.74677402]
[1773343655867,3.44356347,86.22,86.169,3.74677402]
[1773343656971,3.44356347,86.22,86.183,10.442]
[1773343657174,3.44356347,86.21,86.183,10.442]
[1773343660179,3.44356347,86.2,86.175,10.443]
[1773343661581,3.44356347,86.2,86.169,3.74677402]
[1773343662883,3.44356347,86.2,86.17,10.443]
[1773343664283,3.44356347,86.19,86.162,10.444]
[1773343664481,3.77879816,86.2,86.156,4.03482673]
[1773343664679,3.44356347,86.19,86.156,4.03482673]
[1773343665080,7.22236163,86.2,86.175,10.443]
[1773343666385,3.44356347,86.19,86.175,10.443]
[1773343667085,7.22236163,86.2,86.175,10.443]
[1773343667282,7.22236163,86.2,86.168,10.444]
[1773343668380,3.44356347,86.19,86.156,4.03482673]
[1773343669982,3.44356347,86.19,86.166,10.444]
[1773343670686,3.44356347,86.19,86.172,10.443]
[1773343671487,3.44356347,86.19,86.156,4.03482673]
[1773343673084,3.44356347,86.18,86.142,40.53551772]
[1773343673285,3.44356347,86.18,86.143,4.01551772]
[1773343673788,3.76537974,86.189,86.143,4.01551772]
[1773343673990,3.44356347,86.19,86.143,4.01551772]
[1773343674890,3.44356347,86.19,86.167,10.444]
[1773343678785,3.44356347,86.19,86.141,36.54]
[1773343678786,3.44356347,86.2,86.165,4.01551772]
[1773343679990,3.44356347,86.2,86.181,10.442]
[1773343680785,3.44356347,86.2,86.165,4.01551772]
[1773343681980,3.44356347,86.2,86.181,10.442]
[1773343682190,3.44356347,86.2,86.165,4.01551772]
[1773343682891,3.44356347,86.2,86.181,10.442]
[1773343683596,3.44356347,86.2,86.136,20.896]
[1773343683597,3.44356347,86.22,86.176,4.01551772]
[1773343684387,3.44356347,86.21,86.196,10.44]
[1773343686094,3.44356347,86.22,86.202,10.44]
[1773343686291,3.44356347,86.22,86.176,4.01551772]
[1773343686596,8.88617033,86.252,85.802,202.0493387]
[1773343686597,3.44356347,86.24,86.181,4.01551772]
[1773343686795,3.44356347,86.22,86.195,4.01551772]
[1773343687492,3.44356347,86.23,86.195,4.01551772]
[1773343687894,7.20894321,86.23,86.207,10.439]
[1773343688089,3.76537974,86.229,86.182,4.01551772]
[1773343688391,3.44356347,86.22,86.202,10.439]
[1773343689498,3.76537974,86.229,86.209,10.439]
[1773343689697,3.44356347,86.23,86.209,10.439]
[1773343694098,3.76537974,86.239,86.194,4.01551772]
[1773343694895,3.44356347,86.24,86.214,10.438]
[1773343697601,3.44315941,86.24,86.214,10.438]
[1773343698700,3.44315941,86.23,86.214,10.438]
[1773343699805,3.44315941,86.23,86.207,10.439]
[1773343700204,3.76537974,86.24,86.194,4.01551772]
[1773343700406,3.79267863,86.239,86.223,10.437]
[1773343700909,3.79267863,86.239,86.194,4.01551772]
[1773343701596,3.44315941,86.23,86.194,4.01551772]
[1773343702996,3.44315941,86.23,86.207,10.439]
[1773343706012,3.79267863,86.239,86.194,4.01551772]
[1773343706408,3.79267863,86.282,86.211,4.02704627]
[1773343706614,7.23583804,86.28,86.233,4.02704627]
[1773343706813,3.79267863,86.279,86.233,4.02704627]
[1773343707012,3.44315941,86.27,86.233,4.02704627]
[1773343707614,3.79267863,86.279,86.236,10.435]
[1773343708016,3.44315941,86.27,86.233,4.02704627]
[1773343708908,3.44315941,86.27,86.243,10.435]
[1773343709412,3.44315941,86.27,86.236,10.435]
[1773343709609,3.44315941,86.27,86.233,4.02704627]
[1773343709814,3.79267863,86.279,86.233,4.02704627]
[1773343710008,3.79267863,86.279,86.255,10.433]
[1773343710611,3.44315941,86.29,86.255,10.433]
[1773343710809,3.44315941,86.29,86.262,10.432]
[1773343711316,3.44315941,86.3,86.268,10.432]
[1773343712707,3.44315941,86.31,86.273,4.02704627]
[1773343713921,11.46487224,86.342,86.22,11.63767106]
[1773343713922,14.2348424,86.354,86.29,3.44315941]
[1773343714112,14.2348424,86.354,86.246,162.317]
[1773343714113,14.2348424,86.354,86.3,3.44315941]
[1773343714314,14.2348424,86.368,86.31,3.44315941]
[1773343714518,3.44315941,86.36,86.328,10.424]
[1773343715013,36.52,86.39,86.28,20.861]
[1773343715014,3.44315941,86.38,86.338,10.423]
[1773343715225,14.2348424,86.382,86.33,3.44315941]
[1773343715425,3.44315941,86.38,86.33,3.44315941]
[1773343715817,3.44315941,86.38,86.336,10.423]
[1773343717416,3.44315941,86.37,86.324,10.425]
[1773343717620,3.44315941,86.37,86.32,3.44315941]
[1773343717919,17.70528174,86.38,86.32,3.44315941]
[1773343718119,3.44315941,86.37,86.32,3.44315941]
[1773343718527,3.44315941,86.37,86.334,10.424]
[1773343718916,17.70528174,86.38,86.334,10.424]
[1773343721124,3.44315941,86.37,86.334,10.424]
[1773343721724,3.44315941,86.37,86.324,10.425]
[1773343722224,3.44315941,86.37,86.32,3.44315941]
[1773343722727,3.44315941,86.37,86.31,3.44315941]
[1773343723025,3.44315941,86.37,86.333,10.424]
[1773343723924,17.77333053,86.36,86.323,10.425]
[1773343725324,3.44315941,86.34,86.29,3.44315941]
[1773343725530,3.44315941,86.34,86.279,36.48]
[1773343725531,3.44315941,86.33,86.28,3.44315941]
[1773343725722,14.32392189,86.354,86.3,3.44315941]
[1773343725926,3.44315941,86.36,86.3,3.44315941]
[1773343726327,14.32392189,86.367,86.329,10.424]
[1773343726527,14.32392189,86.367,86.279,36.48]
[1773343726528,14.32392189,86.381,86.33,3.44315941]
[1773343726828,3.44315941,86.38,86.33,3.44315941]
[1773343727023,3.44315941,86.38,86.279,36.48]
[1773343727024,3.44315941,86.37,86.32,3.44315941]
[1773343727430,17.7670813,86.38,86.32,3.44315941]
[1773343727832,17.7670813,86.38,86.341,10.423]
[1773343728029,3.44315941,86.38,86.33,3.44315941]
[1773343728229,3.44315941,86.39,86.34,3.44315941]
[1773343729030,3.44315941,86.39,86.349,10.422]
[1773343729829,17.71152293,86.38,86.339,10.423]
[1773343730734,3.44315941,86.37,86.339,10.423]
[1773343732336,17.7058001,86.37,86.33,10.424]
[1773343732734,3.44315941,86.37,86.33,10.424]
[1773343733334,17.7058001,86.37,86.33,10.424]
[1773343734132,3.44315941,86.36,86.33,10.424]
[1773343735042,17.7058001,86.37,86.33,10.424]
[1773343736037,17.68268704,86.36,86.321,10.425]
[1773343736637,3.44315941,86.36,86.329,10.424]
[1773343737836,14.23952763,86.369,86.336,10.423]
[1773343738236,14.23952763,86.369,86.334,10.424]
[1773343738938,14.22129335,86.412,86.32,3.44315941]
[1773343739139,30.34181376,86.408,86.36,3.44315941]
[1773343739338,30.34181376,86.408,86.35,3.44315941]
[1773343740341,16.12052041,86.408,86.374,10.419]
[1773343740541,17.6483927,86.4,86.35,3.44315941]
[1773343740841,16.12052041,86.408,86.36,3.44315941]
[1773343741034,3.44315941,86.43,86.38,3.44315941]
[1773343741241,3.44315941,86.44,86.39,3.44315941]